[Event "Late-Titled-Tuesday-Blitz-May-28-2024"]
[Site "Chess.com"]
[Date "2024.05.28"]
[Round "3"]
[White "KingCyber19"]
[Black "King_Deded4d5"]
[Result "1-0"]
[WhiteElo "2625"]
[BlackElo "2450"]
[TimeControl "180+1"]
[EndTime "14:30:22 PDT"]
[Termination "KingCyber19 won on time"]

1. d4 {[%clk 0:03:00.9]} 1... d5 {[%clk 0:02:56.8]} 2. c4 {[%clk 0:03:00.7]}
2... e6 {[%clk 0:02:56.5]} 3. g3 {[%clk 0:03:00.2]} 3... Nf6 {[%clk 0:02:55.6]}
4. Bg2 {[%clk 0:03:00]} 4... dxc4 {[%clk 0:02:54.3]} 5. Nf3 {[%clk 0:02:52.4]}
5... c6 {[%clk 0:02:52.2]} 6. O-O {[%clk 0:02:45]} 6... b5 {[%clk 0:02:51.8]} 7.
a4 {[%clk 0:02:42.6]} 7... Bb7 {[%clk 0:02:27.5]} 8. b3 {[%clk 0:02:32.1]} 8...
cxb3 {[%clk 0:02:23.4]} 9. Qxb3 {[%clk 0:02:33]} 9... b4 {[%clk 0:02:22]} 10. a5
{[%clk 0:02:28.1]} 10... c5 {[%clk 0:02:20.8]} 11. Rd1 {[%clk 0:01:58.1]} 11...
Bd5 {[%clk 0:02:09]} 12. Qa4+ {[%clk 0:01:43.8]} 12... Qd7 {[%clk 0:02:07.4]}
13. Qc2 {[%clk 0:01:34.8]} 13... c4 {[%clk 0:02:03.9]} 14. Ne5 {[%clk
0:01:33.7]} 14... Qb7 {[%clk 0:01:55.5]} 15. f3 {[%clk 0:01:29.5]} 15... c3
{[%clk 0:01:51]} 16. e4 {[%clk 0:00:50.8]} 16... Bc6 {[%clk 0:01:49.5]} 17. Nxc3
{[%clk 0:00:48.9]} 17... bxc3 {[%clk 0:01:48.4]} 18. Qxc3 {[%clk 0:00:49.8]}
18... Bb4 {[%clk 0:01:39.8]} 19. Qc4 {[%clk 0:00:45.6]} 19... Be7 {[%clk
0:01:20.4]} 20. a6 {[%clk 0:00:44.5]} 20... Qb5 {[%clk 0:01:18.3]} 21. Qc3
{[%clk 0:00:25.8]} 21... O-O {[%clk 0:01:13.1]} 22. Ba3 {[%clk 0:00:21.8]} 22...
Bxa3 {[%clk 0:01:08.9]} 23. Qxa3 {[%clk 0:00:22.7]} 23... Rc8 {[%clk 0:00:45.5]}
24. Rdb1 {[%clk 0:00:18.6]} 24... Qxa6 {[%clk 0:00:16.7]} 25. Qxa6 {[%clk
0:00:17.7]} 25... Nxa6 {[%clk 0:00:17.6]} 26. Rxa6 {[%clk 0:00:17.8]} 26... Be8
{[%clk 0:00:14.5]} 27. Rba1 {[%clk 0:00:18.2]} 27... Rc7 {[%clk 0:00:13.8]} 28.
f4 {[%clk 0:00:18]} 28... Rd8 {[%clk 0:00:14]} 29. Rd1 {[%clk 0:00:13.6]} 29...
Bb5 {[%clk 0:00:12.9]} 30. Ra5 {[%clk 0:00:13.1]} 30... a6 {[%clk 0:00:12.7]}
31. h3 {[%clk 0:00:12.9]} 31... h5 {[%clk 0:00:12.7]} 32. Ra2 {[%clk 0:00:12.3]}
32... Rc3 {[%clk 0:00:12.1]} 33. Kh2 {[%clk 0:00:11.6]} 33... Rdc8 {[%clk
0:00:11.4]} 34. d5 {[%clk 0:00:10.9]} 34... Rc2 {[%clk 0:00:10.6]} 35. Rd2
{[%clk 0:00:07.6]} 35... Rxa2 {[%clk 0:00:09.1]} 36. Rxa2 {[%clk 0:00:08.5]}
36... exd5 {[%clk 0:00:09.7]} 37. exd5 {[%clk 0:00:09.4]} 37... Rd8 {[%clk
0:00:09.1]} 38. Rd2 {[%clk 0:00:09.8]} 38... Kf8 {[%clk 0:00:09.5]} 39. d6
{[%clk 0:00:08.8]} 39... Ne8 {[%clk 0:00:03.8]} 40. d7 {[%clk 0:00:09.2]} 40...
Nf6 {[%clk 0:00:03.9]} 41. g4 {[%clk 0:00:03.5]} 41... hxg4 {[%clk 0:00:03.7]}
42. hxg4 {[%clk 0:00:04.4]} 42... Nxd7 {[%clk 0:00:03.4]} 43. Nc6 {[%clk
0:00:05.1]} 43... Bxc6 {[%clk 0:00:01.8]} 44. Bxc6 {[%clk 0:00:06]} 44... Ke7
{[%clk 0:00:01.7]} 45. Ra2 {[%clk 0:00:06]} 45... Nc5 {[%clk 0:00:01.7]} 46. Rc2
{[%clk 0:00:04.9]} 46... Kd6 {[%clk 0:00:01.8]} 47. Bf3 {[%clk 0:00:05.2]} 47...
Rc8 {[%clk 0:00:01.5]} 48. Rd2+ {[%clk 0:00:05.3]} 48... Kc7 {[%clk 0:00:01.1]}
49. Rd5 {[%clk 0:00:05.8]} 49... Kb6 {[%clk 0:00:01.2]} 50. Rd6+ {[%clk
0:00:05.8]} 50... Kb5 {[%clk 0:00:01.2]} 51. Be2+ {[%clk 0:00:06]} 51... Kb4
{[%clk 0:00:00.9]} 52. Bxa6 {[%clk 0:00:05.5]} 52... Nxa6 {[%clk 0:00:01.8]} 53.
Rxa6 {[%clk 0:00:05.6]} 53... Kc5 {[%clk 0:00:02.7]} 54. Ra7 {[%clk 0:00:05.7]}
54... Rf8 {[%clk 0:00:01.9]} 55. f5 {[%clk 0:00:06.2]} 55... Kd5 {[%clk
0:00:02.8]} 56. Kg3 {[%clk 0:00:06.7]} 56... Ke5 {[%clk 0:00:02.7]} 57. Kh4
{[%clk 0:00:06.9]} 57... g6 {[%clk 0:00:01.9]} 58. Ra5+ {[%clk 0:00:04.8]} 58...
Kf6 {[%clk 0:00:01.6]} 59. Ra6+ {[%clk 0:00:05.7]} 59... Kg7 {[%clk 0:00:00.5]}
60. f6+ {[%clk 0:00:06.3]} 1-0

[Event "Late-Titled-Tuesday-Blitz-May-28-2024"]
[Site "Chess.com"]
[Date "2024.05.28"]
[Round "3"]
[White "Sondremelaa"]
[Black "ClauAmura"]
[Result "1-0"]
[WhiteElo "2579"]
[BlackElo "2415"]
[TimeControl "180+1"]
[EndTime "14:30:33 PDT"]
[Termination "Sondremelaa won by resignation"]

1. d4 {[%clk 0:03:00.9]} 1... d5 {[%clk 0:02:59]} 2. Bf4 {[%clk 0:02:57.9]} 2...
Nf6 {[%clk 0:02:56.5]} 3. e3 {[%clk 0:02:57.8]} 3... c6 {[%clk 0:02:53.8]} 4. c4
{[%clk 0:02:55.6]} 4... Bf5 {[%clk 0:02:48.9]} 5. Nc3 {[%clk 0:02:55.5]} 5... e6
{[%clk 0:02:49.2]} 6. Nf3 {[%clk 0:02:55.5]} 6... Bd6 {[%clk 0:02:48.2]} 7. Bxd6
{[%clk 0:02:50.5]} 7... Qxd6 {[%clk 0:02:47.7]} 8. Qb3 {[%clk 0:02:51.1]} 8...
b6 {[%clk 0:02:42.3]} 9. Be2 {[%clk 0:02:51]} 9... O-O {[%clk 0:02:41.9]} 10.
O-O {[%clk 0:02:50.4]} 10... Nbd7 {[%clk 0:02:42.5]} 11. Rac1 {[%clk 0:02:50.2]}
11... Rfc8 {[%clk 0:02:41.7]} 12. Rfd1 {[%clk 0:02:48.2]} 12... Ne4 {[%clk
0:02:39.8]} 13. Nh4 {[%clk 0:02:32.3]} 13... Bg6 {[%clk 0:02:27.5]} 14. Nxg6
{[%clk 0:02:29.8]} 14... hxg6 {[%clk 0:02:27]} 15. Nxe4 {[%clk 0:02:29.6]} 15...
dxe4 {[%clk 0:02:26.6]} 16. Qc2 {[%clk 0:02:19.7]} 16... Nf6 {[%clk 0:02:21.3]}
17. c5 {[%clk 0:02:17.9]} 17... Qc7 {[%clk 0:02:15.4]} 18. Ba6 {[%clk
0:02:16.2]} 18... Rcb8 {[%clk 0:02:11.8]} 19. b4 {[%clk 0:02:05.3]} 19... b5
{[%clk 0:02:11.2]} 20. a4 {[%clk 0:02:05.5]} 20... Nd5 {[%clk 0:02:06.4]} 21.
Qd2 {[%clk 0:01:59.6]} 21... bxa4 {[%clk 0:02:05.3]} 22. Rb1 {[%clk 0:01:57.3]}
22... a3 {[%clk 0:01:49.1]} 23. Bc4 {[%clk 0:01:56.2]} 23... a5 {[%clk 0:01:48]}
24. b5 {[%clk 0:01:50.5]} 24... cxb5 {[%clk 0:01:47]} 25. Rxb5 {[%clk
0:01:46.8]} 25... Rxb5 {[%clk 0:01:43.9]} 26. Bxb5 {[%clk 0:01:47.7]} 26... Nb4
{[%clk 0:01:42]} 27. Ra1 {[%clk 0:01:45.8]} 27... Rb8 {[%clk 0:01:36.6]} 28. Bc4
{[%clk 0:01:45.9]} 28... e5 {[%clk 0:01:33.3]} 29. Rxa3 {[%clk 0:01:37.6]} 29...
exd4 {[%clk 0:01:32.7]} 30. exd4 {[%clk 0:01:38.5]} 30... Nc6 {[%clk 0:01:25.7]}
31. Ra1 {[%clk 0:01:31.3]} 31... Rd8 {[%clk 0:01:22.8]} 32. d5 {[%clk
0:01:30.6]} 32... Ne5 {[%clk 0:01:20.8]} 33. Qd4 {[%clk 0:01:27.9]} 33... Ng4
{[%clk 0:00:53.8]} 34. d6 {[%clk 0:01:17.8]} 34... Qb7 {[%clk 0:00:47.8]} 35. h3
{[%clk 0:01:13.9]} 35... Nf6 {[%clk 0:00:44]} 36. Rxa5 {[%clk 0:01:14]} 36...
Qb1+ {[%clk 0:00:43.2]} 37. Kh2 {[%clk 0:01:13.8]} 37... Qe1 {[%clk 0:00:40]}
38. c6 {[%clk 0:01:06.7]} 38... Qxa5 {[%clk 0:00:37.3]} 39. c7 {[%clk
0:00:58.7]} 39... Rc8 {[%clk 0:00:36]} 40. g4 {[%clk 0:00:29]} 40... Rxc7 {[%clk
0:00:29.2]} 41. dxc7 {[%clk 0:00:28.9]} 41... Qxc7+ {[%clk 0:00:28.4]} 42. Kg2
{[%clk 0:00:29.5]} 42... Qf4 {[%clk 0:00:27.2]} 43. Be2 {[%clk 0:00:28.9]} 43...
g5 {[%clk 0:00:26.9]} 44. Qd8+ {[%clk 0:00:24.1]} 44... Kh7 {[%clk 0:00:26.3]}
45. Qd4 {[%clk 0:00:24.7]} 45... Kg6 {[%clk 0:00:24]} 46. Qc5 {[%clk 0:00:22.3]}
46... Qd2 {[%clk 0:00:20]} 47. Bc4 {[%clk 0:00:20.5]} 47... Kh7 {[%clk 0:00:20]}
48. Bxf7 {[%clk 0:00:18.4]} 48... e3 {[%clk 0:00:20.2]} 49. Qxe3 {[%clk
0:00:16.8]} 49... Qxe3 {[%clk 0:00:20.6]} 50. fxe3 {[%clk 0:00:17.7]} 50... Ne4
{[%clk 0:00:20.3]} 51. Kf3 {[%clk 0:00:16.8]} 51... Nd6 {[%clk 0:00:20.3]} 52.
Bd5 {[%clk 0:00:16.1]} 52... Kg6 {[%clk 0:00:20.6]} 53. Bc6 {[%clk 0:00:12.4]}
53... Kf6 {[%clk 0:00:21.1]} 54. Kg3 {[%clk 0:00:10.3]} 54... Ke5 {[%clk
0:00:21.6]} 55. h4 {[%clk 0:00:10.8]} 55... gxh4+ {[%clk 0:00:20]} 56. Kxh4
{[%clk 0:00:11.7]} 56... Nc4 {[%clk 0:00:19.5]} 57. e4 {[%clk 0:00:09.2]} 57...
Kf4 {[%clk 0:00:18.9]} 58. Kh5 {[%clk 0:00:09.4]} 58... Ne5 {[%clk 0:00:18.9]}
59. g5 {[%clk 0:00:04]} 59... g6+ {[%clk 0:00:18.3]} 60. Kh6 {[%clk 0:00:03.9]}
60... Nf7+ {[%clk 0:00:18.2]} 61. Kxg6 {[%clk 0:00:03.8]} 61... Nxg5 {[%clk
0:00:19.1]} 62. e5 {[%clk 0:00:02.4]} 62... Ne6 {[%clk 0:00:18.2]} 63. Kf6
{[%clk 0:00:02.8]} 63... Nd4 {[%clk 0:00:17.3]} 64. Bd5 {[%clk 0:00:02.8]} 64...
Nf5 {[%clk 0:00:16]} 65. Bc4 {[%clk 0:00:02.1]} 65... Nd4 {[%clk 0:00:14.2]} 66.
Bd3 {[%clk 0:00:02.8]} 66... Ke3 {[%clk 0:00:13.5]} 67. Bc4 {[%clk 0:00:02]}
67... Kf4 {[%clk 0:00:14.4]} 68. Bd3 {[%clk 0:00:02]} 68... Ke3 {[%clk
0:00:14.7]} 69. Bb1 {[%clk 0:00:02.7]} 69... Kf4 {[%clk 0:00:14.9]} 70. Bg6
{[%clk 0:00:01.8]} 70... Ke3 {[%clk 0:00:15.1]} 71. Ke7 {[%clk 0:00:02.3]} 71...
Kf4 {[%clk 0:00:15.6]} 72. Kd6 {[%clk 0:00:02.7]} 72... Ke3 {[%clk 0:00:14.5]}
73. Kd5 {[%clk 0:00:02.4]} 73... Nf3 {[%clk 0:00:13.8]} 74. e6 {[%clk
0:00:02.1]} 74... Ng5 {[%clk 0:00:12.6]} 75. e7 {[%clk 0:00:02.5]} 1-0

[Event "Late-Titled-Tuesday-Blitz-May-28-2024"]
[Site "Chess.com"]
[Date "2024.05.28"]
[Round "3"]
[White "RebecaJimnz"]
[Black "WindWhistler11"]
[Result "1-0"]
[WhiteElo "2315"]
[BlackElo "2529"]
[TimeControl "180+1"]
[EndTime "14:30:39 PDT"]
[Termination "RebecaJimnz won by resignation"]

1. e4 {[%clk 0:03:00.9]} 1... e6 {[%clk 0:02:59.8]} 2. d3 {[%clk 0:03:00.7]}
2... d5 {[%clk 0:02:58.2]} 3. Nd2 {[%clk 0:03:01.1]} 3... Nf6 {[%clk 0:02:57.1]}
4. Ngf3 {[%clk 0:03:01.5]} 4... c5 {[%clk 0:02:57.7]} 5. g3 {[%clk 0:03:01.5]}
5... Nc6 {[%clk 0:02:58.2]} 6. Bg2 {[%clk 0:03:02]} 6... g6 {[%clk 0:02:58.8]}
7. O-O {[%clk 0:03:02.4]} 7... Bg7 {[%clk 0:02:59.2]} 8. Re1 {[%clk 0:03:03]}
8... O-O {[%clk 0:02:59.5]} 9. c3 {[%clk 0:02:57.3]} 9... b6 {[%clk 0:02:59.7]}
10. e5 {[%clk 0:02:56.8]} 10... Nd7 {[%clk 0:02:59.5]} 11. d4 {[%clk 0:02:57.2]}
11... a5 {[%clk 0:03:00.2]} 12. Nf1 {[%clk 0:02:55.8]} 12... Ba6 {[%clk
0:03:00.3]} 13. Bg5 {[%clk 0:02:51.8]} 13... Qe8 {[%clk 0:02:54.2]} 14. Qd2
{[%clk 0:02:50.4]} 14... Rc8 {[%clk 0:02:51.9]} 15. Bh6 {[%clk 0:02:44.2]} 15...
cxd4 {[%clk 0:02:49.6]} 16. cxd4 {[%clk 0:02:42.8]} 16... Nb4 {[%clk 0:02:48.7]}
17. Bxg7 {[%clk 0:02:39.5]} 17... Kxg7 {[%clk 0:02:48.5]} 18. Rec1 {[%clk
0:02:31.5]} 18... Rxc1 {[%clk 0:02:27.1]} 19. Qxc1 {[%clk 0:02:20.9]} 19... Qe7
{[%clk 0:02:12.5]} 20. Ne3 {[%clk 0:02:09]} 20... h5 {[%clk 0:01:49.8]} 21. a3
{[%clk 0:02:05.4]} 21... Rc8 {[%clk 0:01:46.3]} 22. Qd2 {[%clk 0:02:04]} 22...
Nc6 {[%clk 0:01:44.7]} 23. h4 {[%clk 0:01:54.8]} 23... a4 {[%clk 0:01:42.5]} 24.
Rc1 {[%clk 0:01:31.5]} 24... Qd8 {[%clk 0:00:52.5]} 25. g4 {[%clk 0:01:11.7]}
25... Qh8 {[%clk 0:00:15.4]} 26. g5 {[%clk 0:00:52.9]} 26... Qd8 {[%clk
0:00:13]} 27. Bf1 {[%clk 0:00:37.5]} 27... Bxf1 {[%clk 0:00:12.6]} 28. Nxf1
{[%clk 0:00:37.6]} 28... Na5 {[%clk 0:00:11.4]} 29. Rxc8 {[%clk 0:00:30]} 29...
Qxc8 {[%clk 0:00:12.3]} 30. Qb4 {[%clk 0:00:28.1]} 30... Qc4 {[%clk 0:00:03]}
31. Qe7 {[%clk 0:00:24.1]} 31... Qc7 {[%clk 0:00:03]} 32. Ne3 {[%clk 0:00:20.6]}
32... Nc6 {[%clk 0:00:03.5]} 33. Qe8 {[%clk 0:00:17]} 33... Qd8 {[%clk
0:00:02.7]} 34. Qxd8 {[%clk 0:00:15.7]} 34... Nxd8 {[%clk 0:00:03.6]} 35. Kf1
{[%clk 0:00:15.6]} 35... b5 {[%clk 0:00:03.9]} 36. Ke2 {[%clk 0:00:15.7]} 36...
Nb7 {[%clk 0:00:04.5]} 37. Kd3 {[%clk 0:00:16]} 37... Na5 {[%clk 0:00:05]} 38.
Kc3 {[%clk 0:00:15.9]} 38... Nc6 {[%clk 0:00:05]} 39. Ne1 {[%clk 0:00:14.4]}
39... Nb6 {[%clk 0:00:04.6]} 40. Nd3 {[%clk 0:00:14.2]} 40... Kf8 {[%clk
0:00:05]} 41. Nb4 {[%clk 0:00:11.8]} 41... Na5 {[%clk 0:00:04.3]} 42. Na6 {[%clk
0:00:10.6]} 42... Nbc4 {[%clk 0:00:02.3]} 43. Nc7 {[%clk 0:00:07]} 43... Nc6
{[%clk 0:00:02.3]} 44. Nxb5 {[%clk 0:00:06.8]} 44... Nxe3 {[%clk 0:00:02.8]} 45.
fxe3 {[%clk 0:00:06.6]} 45... Ne7 {[%clk 0:00:03.4]} 46. Kd3 {[%clk 0:00:04.1]}
46... Nf5 {[%clk 0:00:03.1]} 47. Nc3 {[%clk 0:00:02.7]} 47... Nxh4 {[%clk
0:00:03.4]} 48. Nxa4 {[%clk 0:00:02.4]} 48... Nf3 {[%clk 0:00:04.3]} 49. Nc5
{[%clk 0:00:02.2]} 49... h4 {[%clk 0:00:04.2]} 50. Ke2 {[%clk 0:00:01.7]} 50...
Nxg5 {[%clk 0:00:04.5]} 51. Kf2 {[%clk 0:00:01.1]} 51... f6 {[%clk 0:00:04.4]}
52. a4 {[%clk 0:00:02]} 52... fxe5 {[%clk 0:00:04.4]} 53. dxe5 {[%clk
0:00:02.9]} 53... Nf7 {[%clk 0:00:05.3]} 54. a5 {[%clk 0:00:02.8]} 54... Nd8
{[%clk 0:00:05.9]} 55. a6 {[%clk 0:00:03.7]} 55... Nc6 {[%clk 0:00:06.2]} 56.
Nb7 {[%clk 0:00:03]} 56... Ke7 {[%clk 0:00:06.1]} 57. Na5 {[%clk 0:00:02.9]}
57... Na7 {[%clk 0:00:06.4]} 58. Nb3 {[%clk 0:00:01.5]} 58... Kd7 {[%clk
0:00:06.4]} 59. Kf3 {[%clk 0:00:02]} 59... Kc6 {[%clk 0:00:06.6]} 60. Kg4 {[%clk
0:00:02.7]} 60... g5 {[%clk 0:00:07.4]} 61. Nd4+ {[%clk 0:00:02.1]} 61... Kd7
{[%clk 0:00:07.3]} 62. Nf3 {[%clk 0:00:02]} 62... Kc6 {[%clk 0:00:06.5]} 63.
Nxg5 {[%clk 0:00:02.6]} 63... Kb5 {[%clk 0:00:07.2]} 64. Nxe6 {[%clk 0:00:02.8]}
64... Kxa6 {[%clk 0:00:07.9]} 65. Kxh4 {[%clk 0:00:02.6]} 65... Nc6 {[%clk
0:00:08]} 66. Nf4 {[%clk 0:00:03.3]} 66... Nxe5 {[%clk 0:00:08.1]} 67. Nxd5
{[%clk 0:00:04]} 67... Nc4 {[%clk 0:00:08.7]} 68. e4 {[%clk 0:00:04]} 68... Nxb2
{[%clk 0:00:09.2]} 69. Kg5 {[%clk 0:00:04.6]} 69... Nc4 {[%clk 0:00:10.1]} 70.
Kf5 {[%clk 0:00:04.8]} 70... Kb5 {[%clk 0:00:10.6]} 71. Nf6 {[%clk 0:00:03.8]}
71... Kc5 {[%clk 0:00:11.2]} 72. Ne8 {[%clk 0:00:03.7]} 72... Ne3+ {[%clk
0:00:11.4]} 73. Kf4 {[%clk 0:00:03.3]} 73... Nc4 {[%clk 0:00:12.3]} 74. Nf6
{[%clk 0:00:02.6]} 74... Kc6 {[%clk 0:00:13.2]} 75. Ng4 {[%clk 0:00:02.8]} 75...
Kd6 {[%clk 0:00:14.1]} 76. Ne3 {[%clk 0:00:02.3]} 76... Ke6 {[%clk 0:00:15]} 77.
Nxc4 {[%clk 0:00:01.5]} 77... Kf6 {[%clk 0:00:15.9]} 78. Ne3 {[%clk 0:00:02.3]}
78... Ke6 {[%clk 0:00:16.8]} 79. e5 {[%clk 0:00:02.8]} 79... Ke7 {[%clk
0:00:17.7]} 80. Ke4 {[%clk 0:00:03.4]} 80... Kf7 {[%clk 0:00:18.6]} 81. Kf5
{[%clk 0:00:04.3]} 81... Ke7 {[%clk 0:00:19.5]} 82. e6 {[%clk 0:00:05]} 82...
Kf8 {[%clk 0:00:19.9]} 83. Ke5 {[%clk 0:00:05.6]} 83... Ke7 {[%clk 0:00:20.8]}
84. Kf5 {[%clk 0:00:05.9]} 84... Ke8 {[%clk 0:00:21.7]} 85. Kf6 {[%clk
0:00:06.4]} 85... Kf8 {[%clk 0:00:22]} 86. e7+ {[%clk 0:00:07]} 86... Ke8 {[%clk
0:00:22.9]} 87. Ng4 {[%clk 0:00:07.5]} 87... Kd7 {[%clk 0:00:23.2]} 88. Kf7
{[%clk 0:00:08.1]} 88... Kd6 {[%clk 0:00:23.4]} 89. e8=Q {[%clk 0:00:08.5]} 1-0

[Event "Late-Titled-Tuesday-Blitz-May-28-2024"]
[Site "Chess.com"]
[Date "2024.05.28"]
[Round "3"]
[White "KatakuriDono"]
[Black "Hananmo"]
[Result "1/2-1/2"]
[WhiteElo "2293"]
[BlackElo "2535"]
[TimeControl "180+1"]
[EndTime "14:30:44 PDT"]
[Termination "Game drawn - insufficient material"]

1. d4 {[%clk 0:03:00.9]} 1... Nf6 {[%clk 0:02:58.7]} 2. Nf3 {[%clk 0:02:59.6]}
2... g6 {[%clk 0:02:57.4]} 3. Nbd2 {[%clk 0:02:59.2]} 3... d5 {[%clk 0:02:56.6]}
4. e3 {[%clk 0:02:59.4]} 4... Bg7 {[%clk 0:02:56.4]} 5. b4 {[%clk 0:02:59.6]}
5... O-O {[%clk 0:02:50.2]} 6. c4 {[%clk 0:02:58.8]} 6... a5 {[%clk 0:02:46.1]}
7. b5 {[%clk 0:02:58.7]} 7... dxc4 {[%clk 0:02:39.6]} 8. Bxc4 {[%clk 0:02:57.8]}
8... Nbd7 {[%clk 0:02:31.5]} 9. O-O {[%clk 0:02:56.2]} 9... Re8 {[%clk
0:02:26.9]} 10. Bb2 {[%clk 0:02:54.3]} 10... Nb6 {[%clk 0:02:24.4]} 11. Be2
{[%clk 0:02:49.3]} 11... Bf5 {[%clk 0:02:12.7]} 12. a4 {[%clk 0:02:45.9]} 12...
Ne4 {[%clk 0:02:04.6]} 13. Nxe4 {[%clk 0:02:37.6]} 13... Bxe4 {[%clk 0:02:05.5]}
14. Bd3 {[%clk 0:02:38]} 14... Bxd3 {[%clk 0:02:00.2]} 15. Qxd3 {[%clk
0:02:37.9]} 15... e5 {[%clk 0:02:01.1]} 16. Qc2 {[%clk 0:02:24.6]} 16... e4
{[%clk 0:01:53.4]} 17. Nd2 {[%clk 0:02:24.7]} 17... Qe7 {[%clk 0:01:50.1]} 18.
Rfc1 {[%clk 0:02:23.4]} 18... Nd5 {[%clk 0:01:50.1]} 19. Qc5 {[%clk 0:02:16.4]}
19... Qe6 {[%clk 0:01:49.1]} 20. Qc4 {[%clk 0:01:52]} 20... h5 {[%clk
0:01:39.3]} 21. Nb3 {[%clk 0:01:51.4]} 21... h4 {[%clk 0:01:31.1]} 22. h3 {[%clk
0:01:49.1]} 22... b6 {[%clk 0:01:19.8]} 23. Ba3 {[%clk 0:01:47]} 23... g5 {[%clk
0:01:16.3]} 24. Qe2 {[%clk 0:01:43.1]} 24... f5 {[%clk 0:00:58.2]} 25. Rc6
{[%clk 0:01:42.1]} 25... Qf7 {[%clk 0:00:55.7]} 26. Rac1 {[%clk 0:01:36.5]}
26... Rad8 {[%clk 0:00:53.2]} 27. Nd2 {[%clk 0:01:34.7]} 27... Re6 {[%clk
0:00:46.1]} 28. Qc4 {[%clk 0:01:16.4]} 28... Bf8 {[%clk 0:00:32.4]} 29. Bxf8
{[%clk 0:01:14.9]} 29... Kxf8 {[%clk 0:00:33]} 30. Rxe6 {[%clk 0:01:09.6]} 30...
Qxe6 {[%clk 0:00:33.9]} 31. Qc6 {[%clk 0:01:09.7]} 31... Qxc6 {[%clk 0:00:25.6]}
32. Rxc6 {[%clk 0:01:09.2]} 32... Rd6 {[%clk 0:00:22.6]} 33. Rxd6 {[%clk
0:01:05.9]} 33... cxd6 {[%clk 0:00:23.5]} 34. Nc4 {[%clk 0:01:06.4]} 34... Ke7
{[%clk 0:00:24.2]} 35. Kf1 {[%clk 0:01:02.9]} 35... Kd7 {[%clk 0:00:24.3]} 36.
Ke1 {[%clk 0:01:02.7]} 36... Kc7 {[%clk 0:00:23.8]} 37. Kd2 {[%clk 0:01:02.8]}
37... Nf6 {[%clk 0:00:23]} 38. f3 {[%clk 0:00:57.7]} 38... exf3 {[%clk 0:00:17]}
39. gxf3 {[%clk 0:00:57.5]} 39... g4 {[%clk 0:00:17.9]} 40. fxg4 {[%clk
0:00:53.8]} 40... fxg4 {[%clk 0:00:18.8]} 41. Ke2 {[%clk 0:00:49.7]} 41... gxh3
{[%clk 0:00:18.5]} 42. Kf2 {[%clk 0:00:50.1]} 42... Ng4+ {[%clk 0:00:16.4]} 43.
Kg1 {[%clk 0:00:50.2]} 43... d5 {[%clk 0:00:15.7]} 44. Nd2 {[%clk 0:00:42.1]}
44... Nxe3 {[%clk 0:00:15.7]} 45. Kh2 {[%clk 0:00:42]} 45... Nf5 {[%clk
0:00:09.6]} 46. Nf3 {[%clk 0:00:42.1]} 46... Kd6 {[%clk 0:00:09.8]} 47. Kxh3
{[%clk 0:00:42.4]} 47... Ke6 {[%clk 0:00:10.4]} 48. Kg4 {[%clk 0:00:37]} 48...
Kf6 {[%clk 0:00:10.6]} 49. Kh3 {[%clk 0:00:31]} 49... Kf7 {[%clk 0:00:10.9]} 50.
Kg4 {[%clk 0:00:31.3]} 50... Kg6 {[%clk 0:00:11.4]} 51. Ne5+ {[%clk 0:00:25.8]}
51... Kf6 {[%clk 0:00:10.3]} 52. Nf3 {[%clk 0:00:26.3]} 52... Ke6 {[%clk
0:00:08.5]} 53. Kh3 {[%clk 0:00:25.1]} 53... Kf7 {[%clk 0:00:07.9]} 54. Kg4
{[%clk 0:00:25.4]} 54... Ne3+ {[%clk 0:00:07.2]} 55. Kxh4 {[%clk 0:00:24.3]}
55... Nc4 {[%clk 0:00:08.1]} 56. Kg5 {[%clk 0:00:20.4]} 56... Ke6 {[%clk
0:00:07.6]} 57. Kf4 {[%clk 0:00:19.6]} 57... Nb2 {[%clk 0:00:08]} 58. Ng5+
{[%clk 0:00:19.8]} 58... Kd6 {[%clk 0:00:07.5]} 59. Kf5 {[%clk 0:00:19]} 59...
Nxa4 {[%clk 0:00:07.4]} 60. Nf7+ {[%clk 0:00:19.7]} 60... Ke7 {[%clk 0:00:07.9]}
61. Ng5 {[%clk 0:00:18.9]} 61... Nc3 {[%clk 0:00:08.3]} 62. Ke5 {[%clk 0:00:19]}
62... a4 {[%clk 0:00:09]} 63. Nf3 {[%clk 0:00:18.6]} 63... a3 {[%clk 0:00:09.3]}
64. Nd2 {[%clk 0:00:19]} 64... a2 {[%clk 0:00:09.9]} 65. Nb3 {[%clk 0:00:19.1]}
65... Kd7 {[%clk 0:00:10.5]} 66. Na1 {[%clk 0:00:18.4]} 66... Ke7 {[%clk
0:00:10.4]} 67. Nb3 {[%clk 0:00:18.7]} 67... Kf7 {[%clk 0:00:10]} 68. Na1 {[%clk
0:00:18.7]} 68... Ke8 {[%clk 0:00:10.5]} 69. Nb3 {[%clk 0:00:19.1]} 69... Kf7
{[%clk 0:00:11]} 70. Na1 {[%clk 0:00:19.3]} 70... Kg6 {[%clk 0:00:11.7]} 71. Nb3
{[%clk 0:00:19.6]} 71... Kg5 {[%clk 0:00:12.2]} 72. Kd6 {[%clk 0:00:18.6]} 72...
Kg4 {[%clk 0:00:12.8]} 73. Kc6 {[%clk 0:00:18.7]} 73... Kf3 {[%clk 0:00:13.2]}
74. Kxb6 {[%clk 0:00:19.1]} 74... Ke2 {[%clk 0:00:13.5]} 75. Kc5 {[%clk
0:00:19.4]} 75... Kd1 {[%clk 0:00:12.5]} 76. b6 {[%clk 0:00:19.7]} 76... Na4+
{[%clk 0:00:12.8]} 77. Kb4 {[%clk 0:00:11.5]} 77... Nxb6 {[%clk 0:00:13.7]} 78.
Ka3 {[%clk 0:00:11.9]} 78... a1=Q+ {[%clk 0:00:12.1]} 79. Nxa1 {[%clk
0:00:11.5]} 79... Kd2 {[%clk 0:00:12.5]} 80. Kb4 {[%clk 0:00:11.5]} 80... Kd3
{[%clk 0:00:11.8]} 81. Kc5 {[%clk 0:00:12]} 81... Na4+ {[%clk 0:00:11.2]} 82.
Kxd5 {[%clk 0:00:12.4]} 82... Nc3+ {[%clk 0:00:11.9]} 83. Ke5 {[%clk 0:00:12.7]}
83... Kc4 {[%clk 0:00:10.9]} 84. Nc2 {[%clk 0:00:12.1]} 84... Kb5 {[%clk
0:00:11.2]} 85. Ne3 {[%clk 0:00:12.3]} 85... Kc6 {[%clk 0:00:11.8]} 86. d5+
{[%clk 0:00:12.7]} 86... Nxd5 {[%clk 0:00:11.8]} 1/2-1/2